bitfinex/quotes_ETHUSD_20260121
["timestamp","ask_amount","ask_price","bid_price","bid_amount"]
[1769010664312,0.0209722,2999.1,2998.3,12.2530011]
[1769010665989,0.0209722,2999.1,2998.4,25.5934493]
[1769010666202,11.89056681,3001.1,2998.6,12.2530011]
[1769010666368,3.33147826,3001.7,2998.4,16.67556025]
[1769010666369,1.20185668,3001.0,2999.0,12.2530011]
[1769010666586,11.89056681,3001.5,2999.2,12.2530011]
[1769010666903,11.89056681,3002.1,2999.4,12.2530011]
[1769010667114,11.89056681,3001.7,2999.5,12.8040011]
[1769010667276,11.89056681,3002.3,2999.8,12.2530011]
[1769010667473,11.89056681,3002.1,2999.9,0.42426495]
[1769010667698,11.89056681,3001.9,2999.9,0.551]
[1769010667904,11.89056681,3001.7,2999.9,0.551]
[1769010668076,11.89056681,3001.6,3000.0,3.33333333]
[1769010668280,11.89056681,3001.6,2999.2,3.33417058]
[1769010668281,11.89056681,3001.5,2999.0,12.2530011]
[1769010668492,13.41277914,3001.4,2999.9,3.33343611]
[1769010668890,13.41277914,3001.4,2999.9,6.66688055]
[1769010669092,13.41277914,3001.4,2999.8,3.33351239]
[1769010669298,12.01856681,3001.3,2999.1,13.47830121]
[1769010669592,12.01856681,3001.3,2999.2,0.551]
[1769010669792,12.01856681,3001.1,2999.2,0.551]
[1769010669992,11.89056681,3001.1,2999.6,3.33376675]
[1769010670206,11.89056681,3000.8,2998.4,12.2530011]
[1769010670516,0.002,3000.3,2998.4,12.2530011]
[1769010670679,0.002,3000.3,2998.5,12.8040011]
[1769010670879,0.002,3000.3,2999.2,3.33417158]
[1769010671405,0.002,3000.3,2999.2,3.33413477]
[1769010672106,0.002,3000.3,2998.8,12.2530011]
[1769010672285,0.002,3000.3,2999.0,12.2530011]
[1769010672607,0.002,3000.3,2999.4,12.2530011]
[1769010672820,0.002,3000.3,2999.6,12.2530011]
[1769010672981,0.002,3000.3,2999.7,0.551]
[1769010673504,3.50386648,3003.2,2999.7,0.551]
[1769010673505,11.89056681,3002.1,2999.7,12.8040011]
[1769010674108,11.89056681,3002.1,2999.8,22.25366781]
[1769010674290,11.89056681,3002.1,2999.9,12.2530011]
[1769010674489,1.64105237,3002.0,3000.0,1.28040011]
[1769010674689,1.64105237,3002.0,3000.1,15.0282461]
[1769010675010,11.89056681,3002.5,3000.5,12.2530011]
[1769010675578,0.1812824,3002.8,3000.5,12.2530011]
[1769010675805,12.54011597,3002.7,3000.5,12.2530011]
[1769010676194,12.54011597,3002.7,3000.7,12.46813402]
[1769010676907,0.128,3002.7,3000.7,12.46813402]
[1769010677241,0.1812824,3002.8,3000.9,12.46813402]
[1769010677615,12.54011597,3002.7,3000.8,0.36916495]
[1769010677914,0.128,3002.7,3001.0,0.32801188]
[1769010678112,0.128,3002.7,3001.0,12.7961459]
[1769010678294,0.128,3002.7,3001.1,19.13235712]
[1769010678716,0.1812824,3002.8,3001.2,0.31987928]
[1769010679243,0.1812824,3002.8,3001.2,0.551]
[1769010679520,12.41211597,3004.3,3001.7,12.46813402]
[1769010679731,5.46714997,3005.2,3001.2,5.46714997]
[1769010679732,12.41211597,3003.9,3001.2,12.46813402]
[1769010679881,15.718642,3004.0,3001.2,12.46813402]
[1769010679882,12.41211597,3003.5,3001.3,0.551]
[1769010680283,12.41211597,3003.3,3001.4,9.9953355]
[1769010680483,1.2412116,3003.2,3001.6,12.46813402]
[1769010680708,0.128,3003.7,3001.6,12.46813402]
[1769010680896,12.41211597,3003.9,3001.6,12.46813402]
[1769010681120,12.41211597,3004.8,3001.6,12.46813402]
[1769010681305,12.41211597,3004.7,3002.1,12.46813402]
[1769010681499,12.41211597,3004.7,3002.2,12.46493402]
[1769010681704,12.41211597,3004.5,3002.3,0.551]
[1769010681936,0.128,3004.4,3002.4,0.551]
[1769010682108,12.41211597,3004.3,3002.4,0.551]
[1769010682436,0.002,3003.6,3002.2,12.46493402]
[1769010682638,12.41411597,3003.6,3001.8,0.551]
[1769010682805,1.2414116,3003.5,3002.3,3.33075274]
[1769010683004,1.2414116,3003.5,3002.2,3.33083123]
[1769010683207,1.2414116,3003.5,3001.8,0.551]
[1769010683514,1.2414116,3003.5,3002.4,6.66132794]
[1769010683832,0.002,3003.6,3002.4,3.33065915]
[1769010684030,0.002,3003.6,3001.9,12.46813402]
[1769010684234,0.002,3003.6,3002.5,0.551]
[1769010684532,0.002,3003.6,3002.5,7.21210788]
[1769010684937,0.002,3003.6,3002.6,12.46813402]
[1769010685833,0.002,3003.6,3002.7,0.551]
[1769010686440,0.002,3003.6,3002.8,6.66045024]
[1769010686632,0.002,3003.6,3002.8,7.21145024]
[1769010686839,0.002,3003.6,3002.7,3.33031162]
[1769010687009,0.002,3003.6,3002.7,3.88131162]
[1769010687510,0.002,3003.6,3002.8,0.551]
[1769010687710,0.002,3003.6,3002.6,0.551]
[1769010688136,0.002,3003.6,3002.5,3.3304916]
[1769010688336,0.002,3003.6,3002.4,3.33060642]
[1769010688637,0.002,3003.6,3002.5,12.46813402]
[1769010689540,0.002,3003.9,3002.9,12.46813402]
[1769010690414,0.002,3003.9,3003.1,12.46813402]
[1769010691237,12.41411597,3005.2,3003.1,12.46813402]
[1769010691438,12.41211597,3005.0,3003.0,3.33000333]
[1769010691637,12.41211597,3005.0,3003.1,0.551]
[1769010691936,12.41211597,3004.8,3003.1,0.551]
[1769010692311,15.74019193,3004.8,3003.2,3.32978156]
[1769010692544,12.41211597,3004.7,3003.1,3.32986229]
[1769010692737,2.23952696,3004.9,3003.2,13.01913402]
[1769010692937,0.002,3005.2,3003.2,13.01913402]
[1769010693310,0.002,3005.2,3003.4,12.46813402]
[1769010694140,3.32959298,3005.2,3003.1,6.65975473]
[1769010694440,3.32959298,3005.2,3003.3,3.32967069]
[1769010694441,3.32778702,3005.0,3003.3,3.32967069]
[1769010694614,3.32778702,3005.0,3003.3,6.65934138]
[1769010694815,3.32778702,3005.0,3003.3,3.32967069]
[1769010695012,3.32778702,3005.0,3002.4,12.46813402]
[1769010695013,0.128,3004.8,3002.4,12.46813402]
[1769010695213,0.002,3004.5,3002.6,12.46813402]
[1769010695417,0.002,3004.5,3003.2,3.3297524]
[1769010695614,0.002,3004.5,3003.1,3.32986864]
[1769010695840,0.002,3004.5,3003.2,3.32973236]
[1769010696009,0.002,3004.5,3003.2,6.65951392]
[1769010696217,3.33022322,3006.1,3004.0,12.46813402]
[1769010696218,0.0036,3006.1,3004.0,12.46813402]
[1769010696429,0.0036,3006.1,3004.2,13.31469276]
[1769010696730,0.0036,3006.1,3004.3,0.551]
[1769010696915,0.0036,3006.1,3004.4,0.551]
[1769010697743,0.0036,3006.1,3004.2,6.65734638]
[1769010697967,0.0036,3006.1,3004.3,0.551]
[1769010698165,0.0036,3006.1,3004.3,12.46813402]
[1769010698316,0.0036,3006.1,3004.4,0.55]
[1769010698517,0.0036,3006.1,3004.5,3.32834082]
[1769010698936,0.0036,3006.1,3004.4,3.87841256]
[1769010699422,0.0036,3006.1,3004.4,7.20686416]
[1769010699771,0.10029995,3006.1,3005.7,0.0008]
[1769010700747,0.10029995,3006.1,3005.4,0.0008]
[1769010701451,0.0008,3007.1,3005.4,12.46893402]
[1769010701945,0.128,3007.0,3005.4,0.0008]
[1769010702453,0.0008,3007.1,3005.4,0.0008]
[1769010702772,0.0008,3007.1,3005.5,15.79536742]
[1769010702918,0.33340419,3007.1,3005.5,15.79536742]
[1769010703553,0.33340419,3007.1,3005.6,12.46813402]
[1769010703754,0.0008,3007.1,3005.6,12.46813402]
[1769010704634,0.0008,3007.1,3005.8,12.46813402]
[1769010704827,0.0008,3007.1,3005.9,13.01813402]
[1769010705370,0.0008,3007.1,3006.0,13.01813402]
[1769010705874,0.128,3008.1,3006.1,11.91931395]
[1769010706095,0.17373647,3009.0,3008.2,0.00160024]
[1769010706374,0.0008,3009.1,3007.8,11.91931395]
[1769010706840,0.0008,3009.1,3007.9,11.91931395]
[1769010707248,0.0008,3009.1,3007.3,3.325167]
[1769010707446,0.0008,3009.1,3007.2,12.46931395]
[1769010707844,0.0008,3009.1,3007.4,3.32510542]
[1769010708051,0.0008,3009.1,3007.3,11.91931395]
[1769010708470,0.0008,3009.1,3007.7,3.32476741]
[1769010708672,0.0008,3009.1,3007.3,11.91931395]
[1769010708877,0.002,3008.4,3007.0,0.00080016]
[1769010709660,0.128,3008.3,3007.0,0.00080016]
[1769010709982,0.128,3008.1,3007.0,0.00080016]
[1769010710177,12.40516816,3008.1,3005.8,15.24619861]
[1769010710344,12.40516816,3008.1,3005.8,11.91931395]
[1769010710539,0.128,3008.1,3005.8,11.91931395]
[1769010710752,0.128,3008.1,3006.3,3.326348]
[1769010710958,0.128,3008.1,3006.3,6.652696]
[1769010711378,0.128,3008.1,3006.2,15.24573431]
[1769010712184,0.002,3008.4,3006.2,15.24573431]
[1769010712478,0.002,3008.4,3005.8,3.32687004]
[1769010712479,12.40516816,3007.9,3005.8,3.32687004]
[1769010712786,0.128,3007.7,3005.6,11.91931395]
[1769010712957,0.128,3007.7,3005.8,11.91931395]
[1769010713270,3.45281178,3007.7,3005.8,11.91931395]
[1769010713474,6.77762356,3007.7,3005.5,6.6544668]
[1769010713646,0.67776236,3007.6,3005.5,6.6544668]
[1769010714580,0.67776236,3007.6,3005.5,18.57378075]
[1769010714791,4.00273543,3007.6,3005.5,18.57378075]
[1769010714980,4.00267283,3007.6,3005.6,11.91931395]
[1769010715137,7.3275833,3007.6,3005.6,11.91931395]
[1769010715344,0.74555833,3007.5,3005.6,11.91931395]
[1769010715543,0.74555833,3007.5,3005.7,11.91931395]
[1769010715747,0.74555833,3007.5,3005.4,0.0008]
[1769010715748,17.87231813,3007.5,3005.4,0.0008]
[1769010715977,12.27716816,3007.4,3005.4,0.0008]
[1769010716394,12.40516816,3007.2,3005.4,0.0008]
[1769010716688,0.128,3006.8,3005.4,0.0008]
[1769010716845,6.77962596,3006.8,3005.4,0.0008]
[1769010717485,10.10543894,3006.8,3005.4,0.0008]
[1769010717670,22.3826071,3006.8,3005.4,0.0008]
[1769010717874,19.05679412,3006.8,3005.4,0.0008]
[1769010718074,0.128,3006.5,3004.5,3.32831429]
[1769010718462,0.128,3006.5,3004.5,6.65665511]
[1769010718803,3.32623736,3006.4,3004.4,19.22283192]
[1769010719096,6.65247472,3006.4,3004.4,15.89438032]
[1769010719264,0.67804747,3006.3,3004.4,19.22283192]
[1769010719466,0.67804747,3006.3,3004.6,12.56592872]
[1769010719679,3.45313134,3007.4,3004.8,12.56592872]
[1769010719879,0.27183659,3007.3,3004.8,12.56592872]
[1769010720080,16.62118357,3007.2,3004.8,12.56592872]
[1769010720288,11.72838857,3006.8,3004.4,6.6569032]
[1769010720500,11.72838857,3006.8,3004.4,3.3284516]
[1769010720684,11.72838857,3006.1,3003.2,12.56592872]
[1769010721006,11.72838857,3006.1,3003.1,0.55]
[1769010721007,3.32623736,3006.4,3003.7,12.56592872]
[1769010721169,3.32623736,3006.4,3003.3,13.31868276]
[1769010721170,3.32623736,3006.4,3004.1,12.56592872]
[1769010722078,0.128,3006.3,3004.1,12.56592872]
[1769010722274,0.67804747,3006.2,3003.8,12.56592872]
[1769010722480,0.67804747,3006.2,3004.0,12.56592872]
[1769010722784,3.3265693,3006.1,3004.2,12.56592872]
[1769010722980,4.00454284,3006.2,3004.2,12.56592872]
[1769010723499,3.32649537,3006.2,3004.2,12.56592872]
[1769010723719,11.72838857,3005.9,3002.5,12.56592872]
[1769010723916,5.46714997,3005.2,3003.0,12.56592872]
[1769010724116,0.546715,3005.1,3003.5,3.33038672]
[1769010724432,5.46714997,3005.9,3003.5,0.001]
[1769010724433,11.85638857,3004.9,3003.5,0.001]
[1769010724927,11.72838857,3004.7,3002.5,6.66101431]
[1769010725505,0.128,3004.9,3002.5,6.66101431]
[1769010725506,0.128,3005.3,3002.9,12.56592872]
[1769010725973,0.128,3005.7,3002.9,12.56592872]
[1769010726205,11.85638857,3005.7,3002.9,13.11592872]
[1769010726402,11.72838857,3005.4,3002.9,12.56592872]
[1769010726906,6.65490964,3005.3,3003.0,6.66000666]
[1769010727201,18.38313135,3005.4,3003.0,9.99000999]
[1769010727401,15.05575996,3005.4,3003.0,9.99000999]
[1769010727604,5.51085822,3005.6,3003.1,12.56592872]
[1769010727795,3.32714897,3005.6,3003.2,12.56592872]
[1769010728206,6.65433928,3005.6,3003.2,12.56592872]
[1769010728401,15.05553754,3005.6,3003.2,12.56592872]
[1769010728607,18.38272785,3005.6,3003.2,12.56592872]
[1769010729105,11.85638857,3005.5,3003.2,3.32973437]
[1769010729304,13.91218039,3005.4,3003.2,3.32973437]
[1769010729604,11.72838857,3005.2,3002.8,12.56592872]
[1769010729822,11.72838857,3005.0,3002.4,3.88057892]
[1769010730197,11.72838857,3005.0,3003.1,3.3298458]
[1769010730504,12.90122743,3004.9,3002.4,12.56592872]
[1769010730809,11.72838857,3004.7,3002.8,3.33014035]
[1769010731007,3.32823004,3004.6,3002.7,3.3303175]
[1769010731407,6.65646008,3004.6,3002.7,6.66065353]
[1769010731708,6.65646008,3004.6,3002.7,3.3303175]
[1769010732008,13.56687343,3004.5,3002.8,0.33303175]
[1769010732207,3.32823004,3004.6,3002.8,0.33303175]
[1769010732510,0.128,3003.9,3002.0,3.33105302]
[1769010732691,0.128,3003.9,3001.9,3.33212664]
[1769010732894,0.128,3003.9,3001.9,0.001]
[1769010733090,3.32911645,3003.8,3001.9,12.56692872]
[1769010733295,0.128,3003.9,3001.9,12.56692872]
[1769010733296,0.34571165,3003.7,3001.9,12.56692872]
[1769010733713,3.45664876,3004.3,3001.9,12.56692872]
[1769010733911,0.128,3004.2,3001.9,12.56692872]
[1769010734079,11.85638857,3004.2,3001.9,12.56692872]
[1769010734405,11.72838857,3004.2,3002.7,0.001]
[1769010734788,0.128,3004.4,3002.7,0.001]
[1769010735002,3.67431407,3004.3,3002.7,0.001]
[1769010735405,0.34564167,3004.3,3002.7,0.001]
[1769010735801,0.128,3004.4,3002.7,0.001]
[1769010736110,6.65691922,3004.4,3002.7,0.001]
[1769010736585,12.16996073,3004.3,3002.7,0.001]
[1769010736983,12.16996073,3004.1,3002.7,0.001]
[1769010738404,12.16996073,3003.9,3001.9,0.001]
[1769010738586,1.72067209,3003.8,3002.0,0.33323192]
[1769010739221,6.65845456,3003.7,3002.0,0.33323192]
[1769010739864,6.65845456,3003.7,3001.9,0.001]
[1769010739990,6.65845456,3003.7,3002.0,3.33109526]
[1769010740184,6.65845456,3003.7,3001.9,3.33218413]
[1769010740503,18.70041529,3003.7,3001.9,0.001]
[1769010740840,18.70041529,3003.7,3001.9,3.33221316]
[1769010740992,2.04210874,3003.6,3002.0,0.33322132]
[1769010741340,5.37148622,3003.6,3002.0,3.66429088]
[1769010741615,8.7008637,3003.6,3002.0,3.66433354]
[1769010741816,5.37148622,3003.6,3002.0,3.66433354]
[1769010742414,5.37148757,3003.6,3002.0,3.66433354]
[1769010742621,3.32937883,3003.6,3002.0,3.33111222]
[1769010742815,0.128,3003.7,3002.0,3.33111222]
[1769010742999,0.128,3003.7,3002.0,6.66222481]
[1769010743202,3.32933812,3003.6,3001.9,0.001]
[1769010743610,6.65867624,3003.6,3001.9,0.001]
[1769010743814,0.67866762,3003.5,3002.0,0.33323345]
[1769010743998,12.16996073,3003.4,3001.9,0.001]
[1769010745107,0.67866762,3003.5,3001.9,12.28288372]
[1769010745312,0.0032,3003.7,3001.9,12.28288372]
[1769010747234,0.128,3003.3,3001.9,0.001]
[1769010747405,0.128,3003.3,3002.2,0.001]
[1769010747929,0.128,3003.3,3001.9,0.001]
[1769010747930,0.128,3003.1,3001.9,0.001]
[1769010748128,1.24355148,3003.0,3001.9,0.001]
[1769010748906,0.002,3003.3,3001.9,0.001]
[1769010750008,0.002,3003.3,3001.9,12.28288372]
[1769010751112,0.0032,3003.7,3002.2,12.28188372]
[1769010751531,0.0032,3003.7,3002.3,22.27422291]
[1769010751830,0.0032,3003.7,3002.3,18.94344318]
[1769010752000,0.0032,3003.7,3002.3,3.33077973]
[1769010752200,0.0032,3003.7,3002.3,6.66155946]
[1769010752400,0.0032,3003.7,3002.2,3.3308623]
[1769010753011,0.0032,3003.7,3002.2,6.66175298]
[1769010753424,0.0032,3003.7,3001.9,3.33222355]
[1769010753627,0.26655449,3003.5,3001.9,3.33222355]
[1769010753816,0.26655449,3003.4,3001.9,3.33222355]
[1769010754017,0.0032,3003.7,3001.9,3.33222355]
[1769010754228,0.26655449,3003.5,3001.9,3.33222355]
[1769010754434,0.26655449,3003.4,3001.9,3.33222355]
[1769010754605,0.26655449,3003.3,3002.0,0.33322236]
[1769010754816,0.0032,3003.7,3002.0,0.33322236]
[1769010755011,0.2666124,3003.5,3002.0,0.33322236]
[1769010755217,0.2666124,3003.4,3002.0,0.33322236]
[1769010755417,3.5963589,3003.3,3002.0,0.33322236]
[1769010755612,0.35963589,3003.2,3001.9,0.001]
[1769010756036,0.26661415,3003.1,3001.9,0.001]
[1769010756240,18.70136757,3003.3,3001.9,0.001]
[1769010756441,18.70136757,3003.3,3000.7,0.551]
[1769010756442,12.30857463,3003.2,3001.2,3.33195893]
[1769010756614,12.04196073,3002.7,3000.7,0.551]
[1769010756817,12.30857463,3002.6,3000.7,0.551]
[1769010757037,1.49747136,3002.5,3001.1,3.33210806]
[1769010757251,0.2666139,3002.4,3001.0,3.33215981]
[1769010757546,0.2666139,3002.3,3000.7,0.551]
[1769010757730,15.37248928,3002.6,3000.7,0.551]
[1769010757731,15.37248928,3002.6,3000.8,6.66488936]
[1769010757930,0.26669512,3002.5,3000.8,6.66488936]
[1769010758133,0.26669512,3002.4,3000.8,6.66488936]
[1769010758446,0.26669512,3002.3,3000.8,3.33244468]
[1769010758647,0.26669512,3002.2,3000.8,6.66488936]
[1769010758840,1.56391844,3002.4,3000.8,6.66488936]
[1769010759038,0.26676718,3002.3,3000.8,6.66488936]
[1769010759337,1.56391844,3002.4,3000.8,6.66488936]
[1769010759644,0.26684146,3002.3,3002.2,0.001]
[1769010759846,0.26684146,3002.3,3000.8,6.66488936]
[1769010760048,1.56391844,3002.4,3000.8,6.66488936]
[1769010760348,0.26684146,3002.3,3000.8,6.66488936]
[1769010760548,0.26684146,3002.2,3000.8,6.66488936]
[1769010760747,1.56391844,3002.4,3000.8,6.66488936]
[1769010760917,1.56391844,3002.4,3000.7,0.551]
[1769010760918,5.03676013,3002.2,3000.7,0.551]
[1769010761117,12.30883326,3002.1,3000.1,12.28188372]
[1769010761353,0.26687253,3002.0,3000.3,3.33294257]
[1769010761652,0.26687253,3002.0,3000.1,15.61503643]
[1769010761653,4.82903435,3001.9,3000.4,0.33329426]
[1769010761853,0.26687253,3001.8,3000.4,0.33329426]
[1769010762017,0.26687253,3001.7,3000.4,0.33329426]
[1769010762218,4.56210783,3001.9,3000.4,0.33329426]
[1769010762431,0.26677809,3001.8,3000.4,0.33329426]
[1769010762637,0.74966668,3001.7,3000.4,0.33329426]
[1769010762831,0.48288859,3001.7,3000.4,0.33329426]
[1769010763249,1.23088333,3001.9,3000.4,0.33329426]
[1769010763471,0.26656788,3001.8,3000.5,3.33277787]
[1769010763681,4.56212664,3001.9,3000.4,3.66613577]
[1769010763872,12.30852861,3001.8,3000.1,3.33314328]
[1769010764040,12.30852861,3001.7,2999.9,3.3333438]
[1769010764247,12.30852861,3001.6,2999.9,3.3333438]
[1769010764463,12.30852861,3001.5,2999.6,12.83288372]
[1769010764646,12.30852861,3001.5,2999.8,3.33352186]
[1769010764647,1.49742074,3001.4,2999.8,3.33352186]
[1769010764839,1.23085286,3001.4,3000.1,3.33316751]
[1769010765038,1.23085286,3001.4,2999.8,3.3334866]
[1769010765039,1.23085286,3001.4,3000.2,3.33306101]
[1769010765266,1.23085286,3001.4,3000.2,3.33306869]
[1769010765436,1.23085286,3001.4,2999.9,3.33341059]
[1769010765637,1.32728136,3001.3,3000.1,3.33320699]
[1769010767485,1.32728136,3001.3,3000.0,0.33334106]
[1769010768285,1.32728136,3001.3,3000.0,6.99994747]
[1769010768887,4.65920705,3001.3,3000.0,0.33334106]
[1769010769074,0.26610207,3001.2,2999.6,3.88468151]
[1769010769258,15.58265734,3001.3,2999.7,3.33359579]
[1769010769587,0.26597657,3001.2,2999.6,3.88472392]
[1769010769784,3.33211155,3001.1,2999.6,3.88472392]
[1769010770099,12.25073165,3001.0,2999.2,11.91685059]
[1769010770300,12.25073165,3001.0,2998.3,3.46315456]
[1769010770301,12.5839428,3001.0,2999.0,15.25124312]
[1769010770455,12.5839428,3001.0,2999.2,3.33416433]
[1769010770878,12.5839428,3001.0,2999.1,3.3343149]
[1769010771084,12.5839428,3001.0,2999.4,3.33399454]
[1769010771275,1.92481659,3000.9,3000.3,0.001]
[1769010771470,1.92481659,3000.9,2999.6,3.33377783]
[1769010771792,1.92481659,3000.9,2999.1,15.25110672]
[1769010771959,12.25073165,3001.5,2999.4,11.91685059]
[1769010772162,0.0032,3001.2,2999.4,11.91685059]
[1769010772364,0.0032,3001.2,2999.5,11.91685059]
[1769010773783,0.0032,3001.2,2999.7,11.91685059]
[1769010775991,0.0032,3001.2,2999.9,11.91685059]
[1769010776168,0.0032,3001.2,3000.0,11.91685059]
[1769010777782,0.0032,3001.2,3000.0,12.46785059]
[1769010777987,0.0032,3001.2,3000.1,6.66644444]
[1769010778197,0.0032,3001.2,3000.2,12.73745662]
[1769010780191,0.0032,3001.2,3000.3,6.66600006]
[1769010780395,0.0032,3001.2,2999.7,12.73745662]
[1769010780564,0.0032,3001.2,3000.0,3.33326268]
[1769010780767,0.0032,3001.2,2999.6,0.551]
[1769010780970,12.3171793,3001.2,2999.6,3.88467785]
[1769010781267,13.54569723,3001.1,2999.6,0.551]
[1769010781693,13.54569723,3001.1,2999.7,3.33359721]
[1769010781892,13.54569723,3001.1,2999.0,16.07181573]
[1769010782092,0.26604298,3001.0,2999.3,12.73745662]
[1769010782294,3.3322254,3001.0,2999.3,12.73745662]
[1769010782473,1.95397604,3000.9,2999.3,12.73745662]
[1769010782677,1.68779226,3000.9,2999.3,12.73745662]
[1769010784105,5.0202161,3000.9,2999.4,3.33400013]
[1769010784411,0.002,3000.6,2999.4,3.33400013]
[1769010784705,0.002,3000.6,2999.5,12.73745662]
[1769010784884,0.002,3000.9,2999.7,12.73745662]
[1769010785880,0.0032,3001.2,2999.6,21.748086]
[1769010786080,0.0032,3001.2,2999.9,12.73745662]
[1769010786295,12.3159793,3002.2,3000.1,12.73745662]
[1769010786493,0.002,3002.2,3000.8,0.0008]
[1769010787120,0.002,3002.2,3000.9,12.73745662]
[1769010788102,0.002,3002.2,3001.0,3.33222259]
[1769010788299,0.002,3002.2,3001.0,6.66444518]
[1769010788487,0.002,3002.2,3001.0,3.33222259]
[1769010788692,0.002,3002.2,3000.9,16.06978073]
[1769010789710,0.002,3002.2,3000.9,19.40211436]
[1769010789920,0.002,3002.2,3001.0,12.73745662]
[1769010790119,0.002,3002.2,3001.1,6.6642231]
[1769010790330,0.002,3002.2,3001.0,12.73745662]
[1769010790522,0.002,3002.2,3000.8,0.0008]
[1769010791020,12.3139793,3002.1,3000.8,0.0008]
[1769010791184,14.04925324,3002.0,3000.8,0.0008]
[1769010791618,14.04925324,3002.0,3001.0,3.33215117]
[1769010791619,1.73527394,3002.0,3001.0,3.33215117]
[1769010791827,0.002,3002.2,3001.0,3.33215117]
[1769010792193,0.002,3002.2,3000.8,3.33321708]
[1769010792395,0.002,3002.2,3000.9,12.73745662]
[1769010793414,0.002,3002.2,3000.8,3.33321708]
[1769010793768,12.3139793,3002.0,3000.8,0.0008]
[1769010793936,13.54537723,3001.9,3000.5,0.0008]
[1769010794419,13.54537723,3001.9,3000.5,3.3335659]
[1769010794624,13.54537723,3001.9,3000.5,6.66634377]
[1769010794625,1.23139793,3001.9,3000.5,6.66634377]
[1769010794806,0.128,3002.1,3000.5,6.66634377]
[1769010795014,0.128,3002.1,3000.5,3.3335659]
[1769010795413,12.4419793,3002.1,3000.5,0.0008]
[1769010795613,0.128,3002.1,3000.5,12.89817302]
[1769010796333,3.45908237,3002.1,3000.6,3.33266679]
[1769010796638,12.74304052,3002.0,3000.5,3.33355808]
[1769010796836,0.002,3001.7,3000.5,3.33355808]
[1769010797042,0.002,3001.7,3000.5,6.66633595]
[1769010798454,0.002,3001.7,3000.5,3.33355808]
[1769010798839,0.002,3001.7,3000.5,0.0008]
[1769010799044,0.002,3001.7,3000.5,3.3335601]
[1769010799538,0.002,3001.7,3000.5,0.0008]
[1769010799845,0.002,3001.7,3000.5,3.33348473]
[1769010800151,0.002,3001.7,3000.5,6.6662626]
[1769010800352,0.002,3001.7,3000.5,3.33348473]
[1769010800537,0.002,3001.7,3000.5,0.0008]
[1769010805660,12.06584311,3001.7,3000.5,0.0008]
[1769010805871,0.002,3001.7,3000.5,12.89817302]
[1769010806055,0.002,3002.0,3000.6,12.89737302]
[1769010806364,15.39560176,3003.3,3001.0,12.89737302]
[1769010806539,0.002,3003.3,3001.4,12.89737302]
[1769010807158,12.06584311,3003.3,3001.4,12.89737302]
[1769010807334,12.19184311,3002.9,3001.3,3.33188951]
[1769010808263,0.002,3003.3,3001.4,12.89737302]
[1769010808789,0.002,3003.3,3001.5,19.560708]
[1769010809060,0.002,3003.3,3001.6,12.89737302]
[1769010810035,0.002,3002.7,3001.6,12.89737302]
[1769010810927,0.002,3002.7,3001.7,3.33144551]
[1769010811177,0.002,3002.7,3001.6,12.89737302]
[1769010811376,0.002,3002.7,3001.5,0.551]
[1769010811574,0.002,3002.7,3001.7,12.89737302]
[1769010812129,0.002,3003.3,3001.8,12.89737302]
[1769010812999,0.002,3003.3,3001.6,3.33154552]
[1769010813000,12.06384311,3003.2,3001.6,3.33154552]
[1769010813173,0.128,3003.1,3001.5,0.551]
[1769010813798,12.06584311,3003.0,3001.5,0.551]
[1769010813968,12.06584311,3003.0,3001.5,3.88266108]
[1769010814294,13.28322742,3002.9,3001.5,3.88266108]
[1769010814510,0.002,3003.0,3001.5,3.88266108]
[1769010814511,0.002,3003.3,3001.6,12.89737302]
[1769010814709,0.002,3003.3,3002.0,12.89737302]
[1769010815008,0.002,3003.3,3002.2,12.89737302]
[1769010815407,0.002,3004.3,3002.3,12.89737302]
[1769010815779,0.002,3004.3,3002.1,16.65500815]
[1769010815780,0.002,3004.3,3003.3,0.0008]
[1769010815982,0.002,3004.3,3003.3,12.89817302]
[1769010816295,3.33264877,3005.4,3003.3,12.89817302]
[1769010816476,3.32750579,3005.3,3003.3,12.89817302]
[1769010816677,0.128,3005.3,3003.3,12.89817302]
[1769010816900,3.32750431,3005.3,3003.4,6.65911966]
[1769010817208,0.128,3005.2,3003.4,6.65911966]
[1769010817378,0.128,3005.2,3003.4,22.88605251]
[1769010817708,0.128,3005.2,3003.4,19.55649268]
[1769010818075,0.128,3005.2,3003.4,22.88605251]
[1769010818276,0.128,3005.2,3003.4,19.55649268]
[1769010818874,12.06384311,3005.0,3003.3,0.0008]
[1769010819077,3.33256372,3005.4,3003.3,0.0008]
[1769010819078,0.128,3005.3,3003.3,12.89817302]
[1769010819400,0.128,3005.3,3003.4,12.89737302]
[1769010819989,3.45549438,3005.3,3003.4,12.89737302]
[1769010820509,0.128,3005.3,3003.4,12.89737302]
[1769010820714,12.19184311,3005.0,3003.3,0.0008]
[1769010820897,18.84741995,3005.0,3003.3,0.0008]
[1769010821501,15.51963153,3005.0,3003.3,0.0008]
[1769010821701,18.84741995,3005.0,3003.6,0.001]
[1769010822009,0.002,3004.3,3003.6,0.001]
[1769010822406,0.002,3004.3,3003.3,0.0008]
[1769010823841,12.06584311,3004.3,3003.3,0.0008]
[1769010823994,1.20658431,3004.2,3003.3,0.0008]
[1769010825102,1.20658431,3004.2,3003.0,0.0008]
[1769010825629,0.002,3004.3,3003.0,0.0008]
[1769010825832,0.002,3004.3,3003.0,12.73656351]
[1769010827304,0.002,3004.3,3003.2,12.73576351]
[1769010829442,0.002,3004.3,3003.3,9.98901207]
[1769010829657,0.002,3004.3,3003.3,22.72477558]
[1769010830418,0.002,3004.3,3003.4,12.73576351]
[1769010831635,0.002,3004.3,3003.6,12.73576351]
[1769010831866,0.002,3004.9,3003.8,12.73576351]
[1769010832210,0.0052,3005.4,3003.8,12.73576351]
[1769010832540,0.0052,3005.4,3004.0,12.73576351]
[1769010833539,0.0052,3005.4,3004.1,9.98635197]
[1769010833740,0.0052,3005.4,3004.2,12.73576351]
[1769010834611,0.0052,3005.4,3004.1,13.31513596]
[1769010834612,0.00084624,3005.4,3005.0,0.0008]
[1769010839242,0.002,3005.9,3005.0,12.24111353]
[1769010839441,0.0052,3007.0,3005.1,12.24031353]
[1769010839672,12.53540588,3007.0,3005.2,18.89544463]
[1769010839854,12.65820588,3006.9,3005.2,6.6551311]